[Event "European Women Rapid-ch 2023"]
[Site "Monaco"]
[Date "2024.01.13"]
[Round "2.25"]
[White "Monpeurt, Cyrielle"]
[Black "Hejazipour, Mitra"]
[Result "1-0"]
[ECO "B48"]
[WhiteElo "2187"]
[BlackElo "2356"]
[Annotator "RC"]
[PlyCount "110"]
[EventDate "2023.12.19"]
[EventType "swiss"]
[EventCountry "MNC"]
[SourceTitle "playchess.com"]
[Source "ChessBase"]
[SourceQuality "1"]
[TimeControl "900+10"]

1. e4 {[%emt 0:00:02]} c5 {[%emt 0:00:02]} 2. Nf3 {[%emt 0:00:02]} e6 {[%emt 0:00:03]} 3. d4 {[%emt 0:00:01]} cxd4 {[%emt 0:00:01]} 4. Nxd4 {[%emt 0:00:02]} Nc6 {[%emt 0:00:02]} 5. Nc3 {[%emt 0:00:02]} Qc7 {[%emt 0:00:02]} 6. Be3 {[%emt 0:00:03]} a6 {[%emt 0:00:01]} 7. Bd3 {[%emt 0:00:03]} b5 {[%emt 0:00:18]} 8. Nxc6 {[%emt 0:00:23]} Qxc6 {[%emt 0:00:24]} 9. O-O {[%emt 0:00:21]} Bb7 {[%emt 0:00:07]} 10. a3 {[%emt 0:00:51]} Nf6 {[%emt 0:00:31]} 11. f3 {[%emt 0:00:18]} Bc5 {[%emt 0:00:18]} 12. Qe2 {[%emt 0:00:08]} d6 {[%emt 0:00:15]} 13. Kh1 {[%emt 0:00:27]} O-O {[%emt 0:00:08]} 14. Rad1 {[%emt 0:01:03]} Rfe8 {[%emt 0:00:18]} 15. Qf2 {[%emt 0:00:19]} Nd7 {[%emt 0:00:09]} 16. Ne2 {[%emt 0:01:00]} Ne5 {[%emt 0:00:14]} 17. Nd4 {[%emt 0:00:30]} Qc7 {[%emt 0:00:12]} 18. Qg3 {[%emt 0:00:40]} Rac8 {[%emt 0:00:41]} 19. f4 {[%emt 0:00:52]} Nxd3 {[%emt 0:00:10]} 20. cxd3 {[%emt 0:00:05]} Qb6 {[%emt 0:00:41]} 21. Nc2 {[%emt 0:00:16]} d5 {[%emt 0:00:34]} 22. e5 {[%emt 0:00:33]} d4 {[%emt 0:04:15]} 23. Bg1 {[%emt 0:00:14]} Qd8 {[%emt 0:00:06]} 24. Ne1 {[%emt 0:01:02]} Bb6 {[%emt 0:00:37]} 25. Nf3 {[%emt 0:00:31]} h6 {[%emt 0:00:38]} 26. Rc1 {[%emt 0:00:28]} Qd5 {[%emt 0:00:09]} 27. Nh4 {[%emt 0:02:03]} Qb3 {[%emt 0:01:10]} 28. f5 {[%emt 0:00:12]} Rxc1 {[%emt 0:00:45]} 29. Rxc1 {[%emt 0:00:01]} Qxb2 {[%emt 0:00:02]} 30. Rf1 {[%emt 0:01:57]} Bd5 {[%emt 0:00:40]} 31. f6 {[%emt 0:00:49]} g5 {[%emt 0:00:02]} 32. Nf3 {[%emt 0:00:13]} Rc8 {[%emt 0:02:00]} 33. Nxg5 {[%emt 0:01:25]} Qxg2+ {[%emt 0:00:21]} 34. Qxg2 {[%emt 0:00:02]} Bxg2+ {[%emt 0:00:01]} 35. Kxg2 {[%emt 0:00:02]} hxg5 {[%emt 0:00:02]} 36. Kf3 {[%emt 0:00:21]} Rc3 {[%emt 0:00:06]} 37. Ke4 {[%emt 0:00:15]} Rxa3 {[%emt 0:00:03]} 38. Rc1 {[%emt 0:00:07]} Kh7 {[%emt 0:01:12]} 39. Rc8 {[%emt 0:00:19]} Ra1 {[%emt 0:00:08]} 40. Bf2 {[%emt 0:00:05]} Ra2 {[%emt 0:00:18]} 41. Kf3 {[%emt 0:00:16]} Rd2 {[%emt 0:00:47]} 42. Rf8 {[%emt 0:00:22]} Kg6 {[%emt 0:00:05]} 43. h4 {[%emt 0:01:12]} g4+ {[%emt 0:00:33]} 44. Kg3 {[%emt 0:00:08]} Kf5 {[%emt 0:00:05]} 45. Rxf7 {[%emt 0:00:16]} Rxd3+ {[%emt 0:00:02]} 46. Kg2 {[%emt 0:00:03]} Rd2 {[%emt 0:00:19]} 47. Rb7 {[%emt 0:00:05]} Bc5 {[%emt 0:00:01]} 48. Rc7 {[%emt 0:00:10]} Bf8 {[%emt 0:00:06]} 49. Rc8 {[%emt 0:00:13]} Bh6 {[%emt 0:00:05]} 50. f7 {[%emt 0:00:10]} Kxe5 {[%emt 0:00:22]} 51. f8=Q {[%emt 0:00:06]} Bxf8 {[%emt 0:00:01]} 52. Rxf8 {[%emt 0:00:02]} Rc2 {[%emt 0:00:21]} 53. h5 {[%emt 0:00:04]} d3 {[%emt 0:00:13]} 54. h6 {[%emt 0:00:06]} Rc7 {[%emt 0:00:28]} 55. Bg3+ {[%emt 0:00:04]} Kd5 {[%emt 0:00:06]} 1-0

[Event "European Women Rapid-ch 2023"]
[Site "Monaco"]
[Date "2024.01.13"]
[Round "2.26"]
[White "Movsesian, Julia"]
[Black "Dubois, Martine"]
[Result "1-0"]
[ECO "B01"]
[WhiteElo "2257"]
[BlackElo "1799"]
[Annotator "TA"]
[PlyCount "63"]
[EventDate "2023.12.19"]
[EventType "swiss"]
[EventCountry "MNC"]
[SourceTitle "playchess.com"]
[Source "ChessBase"]
[SourceQuality "1"]
[TimeControl "900+10"]

{[%evp 10,63,58,-2,110,82,101,42,35,0,68,47,77,14,57,32,32,27,23,21,35,14,12,14,14,-45,-45,-106,-87,-95,-94,-94,-20,-10,95,95,100,93,154,158,150,160,143,-116,12,0,0,0,525,493,610,560,830,263,281,270]} 1. e4 {[%emt 0:00:01]} d5 {[%emt 0:00:04]} 2. exd5 {[%emt 0:00:02]} Qxd5 {[%emt 0:00:02]} 3. Nc3 {[%emt 0:00:01]} Qd6 {[%emt 0:00:00]} 4. d4 {[%emt 0:00:06]} Nf6 {[%emt 0:00:02]} 5. Nf3 {[%emt 0:00:04]} a6 {[%emt 0:00:01]} 6. Ne5 {[%emt 0:00:15]} (6. Bd3 $14) 6... Nbd7 {[%emt 0:00:15]} (6... Nc6 $11) 7. Bf4 {[%emt 0:00:31]} Nd5 {[%emt 0:00:10]} 8. Nxd5 {[%emt 0:04:14]} ({White should try} 8. Bc4 $1 $16 Nxf4 9. Bxf7+ Kd8 10. g3) 8... Qxd5 $14 {[%emt 0:00:15] White is slightly better.} 9. Nxd7 {[%emt 0:00:07]} Qxd7 {[%emt 0:01:39] Black is weak on the dark squares} (9... Bxd7 $11 10. Qd2 O-O-O) 10. Bd3 {[%emt 0:00:13]} g6 {[%emt 0:02:35]} 11. Qf3 {[%emt 0:00:27]} (11. Qe2 $16) 11... Bg7 {[%emt 0:00:34]} 12. O-O-O {[%emt 0:00:10]} O-O {[%emt 0:00:43]} 13. Bc4 {[%emt 0:00:19]} Rb8 {[%emt 0:00:41][%cal Ob7b5]} 14. h4 {[%emt 0:00:22] h5 is the strong threat.} h5 {[%emt 0:00:23][%cal Ob7b5]} 15. Rhe1 {[%emt 0:00:22]} b5 $1 {[%emt 0:00:17]} 16. Bd5 $36 {[%emt 0:00:05][%mdl 2048] White is pushing.} Rb6 {[%emt 0:00:25] Prevents Bc6} 17. Kb1 {[%emt 0:00:27]} (17. g3 $11) 17... Rf6 $1 $15 {[%emt 0:00:53][%cal Of6f4] And now ...Rxf4! would win.} 18. Bb3 {[%emt 0:01:16]} (18. Be4 $15) 18... a5 {[%emt 0:00:36]} 19. a3 {[%emt 0:00:17]} a4 {[%emt 0:00:49]} 20. Ba2 {[%emt 0:00:01] [#]} Bb7 {[%emt 0:01:04]} 21. Qg3 $11 {[%emt 0:00:16][%cal Of4g5]} (21. Qxb7 Rxf4 22. Bd5 Rxf2 $15 (22... Rxd4 23. Rxd4 Bxd4 24. Bc6 $15)) 21... Bd5 {[%emt 0:00:16]} (21... Bxg2 $11 {keeps the balance.} 22. Bxc7 (22. Qxg2 Rxf4 23. Qxg6 Qg4 $15) 22... Bf3) 22. Bxd5 $16 {[%emt 0:00:45]} (22. Bxc7 Bxa2+ 23. Kxa2 Rc6 $15) 22... Qxd5 {[%emt 0:00:02]} 23. Rxe7 {[%emt 0:00:16]} Rc6 {[%emt 0:00:43]} ({Better is} 23... c6) 24. Rxc7 {[%emt 0:00:15]} Rxc7 {[%emt 0:00:47]} 25. Bxc7 {[%emt 0:00:01]} Rc8 {[%emt 0:00:16][%cal Od5c6] Hoping for ...Qc6!} 26. c3 $2 {[%emt 0:01:44][%mdl 8192] [#]} (26. Ba5 $16) 26... Bf8 {[%emt 0:00:17]} (26... b4 $1 $17 27. cxb4 (27. axb4 $2 {is the wrong capture.} Qb3 $19) 27... Qe4+ 28. Qd3 Qxd3+ (28... Qxh4 $2 29. Bg3 $18) 29. Rxd3 Rxc7) 27. Qe5 {[%emt 0:00:55]} (27. Be5 {simplifies} Bxa3 28. Qf3 Qxf3 29. gxf3 Be7 30. Bg3) 27... Qb3 {[%emt 0:00:32]} 28. Rd2 {[%emt 0:00:21]} Bxa3 $2 {[%emt 0:00:15][%mdl 8192]} (28... Qc4 $11 {and Black has nothing to worry.} 29. Ba5 Qf1+ 30. Kc2 Bh6) 29. d5 $18 {[%emt 0:00:15][%cal Bd4d5,Bd5d6][%mdl 32] Active counter play!} Bf8 {[%emt 0:01:37]} 30. d6 {[%emt 0:00:05]} Bg7 {[%emt 0:00:12]} 31. Qd5 {[%emt 0:00:01]} (31. d7 Rf8 32. Qd5 (32. d8=Q Bxe5 33. Bxe5 f6 $18) 32... Qxd5 33. Rxd5) 31... Re8 {[%emt 0:00:32] ( -> ...Re1+)} 32. Qxb3 {[%emt 0:00:27] Weighted Error Value: White=0.47/Black=0.61.  Loses game:     	---       	Black=1      Mistake:       	White=5     	Black=5      Inaccurate:     	White=1     	Black=3      OK:         	White=6     	Black=7      Best:        	White=5     	---        Strong:       	---       	Black=2} 1-0

[Event "European Women Rapid-ch 2023"]
[Site "Monaco"]
[Date "2024.01.13"]
[Round "2.27"]
[White "Paasikangas, Johanna"]
[Black "Navrotescu, Andreea"]
[Result "1-0"]
[ECO "D37"]
[WhiteElo "2038"]
[BlackElo "2222"]
[Annotator "ChessBase"]
[PlyCount "81"]
[EventDate "2023.12.19"]
[EventType "swiss"]
[EventCountry "MNC"]
[SourceTitle "playchess.com"]
[Source "ChessBase"]
[SourceQuality "1"]
[TimeControl "900+10"]

1. d4 {[%emt 0:00:03]} d5 {[%emt 0:00:02]} 2. c4 {[%emt 0:00:04]} e6 {[%emt 0:00:03]} 3. Nc3 {[%emt 0:00:18]} Nf6 {[%emt 0:00:03]} 4. Nf3 {[%emt 0:00:02]} Be7 {[%emt 0:00:06]} 5. Bf4 {[%emt 0:00:38]} O-O {[%emt 0:00:14]} 6. e3 {[%emt 0:00:04]} c5 {[%emt 0:00:04]} 7. cxd5 {[%emt 0:00:11]} Nxd5 {[%emt 0:00:27]} 8. Nxd5 {[%emt 0:01:28]} Qxd5 {[%emt 0:00:02]} 9. dxc5 {[%emt 0:01:48]} Qxc5 {[%emt 0:00:05]} 10. a3 {[%emt 0:00:12]} Nc6 {[%emt 0:02:28]} 11. Be2 {[%emt 0:00:49]} e5 {[%emt 0:00:45]} 12. Bg3 {[%emt 0:00:21]} Rd8 {[%emt 0:01:46]} 13. Qc1 {[%emt 0:00:44]} Qxc1+ {[%emt 0:01:24]} 14. Rxc1 {[%emt 0:00:02]} f6 {[%emt 0:00:03]} 15. Bc4+ {[%emt 0:00:15]} Kf8 {[%emt 0:00:02]} 16. O-O {[%emt 0:00:07]} Bg4 {[%emt 0:00:07]} 17. h3 {[%emt 0:00:31]} Bxf3 {[%emt 0:00:33]} 18. gxf3 {[%emt 0:00:02]} Rd2 {[%emt 0:00:01]} 19. b4 {[%emt 0:00:16]} Rad8 {[%emt 0:00:25]} 20. Kg2 {[%emt 0:01:03]} a5 {[%emt 0:00:14]} 21. b5 {[%emt 0:00:36]} Nb8 {[%emt 0:00:02]} 22. a4 {[%emt 0:00:02]} Nd7 {[%emt 0:00:55]} 23. f4 {[%emt 0:01:51]} e4 {[%emt 0:01:11]} 24. f5 {[%emt 0:00:07]} Nc5 {[%emt 0:00:02]} 25. Bc7 {[%emt 0:00:14]} Ra8 {[%emt 0:01:49]} 26. Rfd1 {[%emt 0:00:05]} Rb2 {[%emt 0:00:48]} 27. Bd6 {[%emt 0:02:03]} Bxd6 {[%emt 0:00:55]} 28. Rxd6 {[%emt 0:00:01]} Rb4 {[%emt 0:00:46]} 29. Bd5 {[%emt 0:01:26]} Nxa4 {[%emt 0:02:40]} 30. Rc7 {[%emt 0:01:23]} Rxb5 {[%emt 0:01:27]} 31. Bxb7 {[%emt 0:00:30]} Rb8 {[%emt 0:00:28]} 32. Rdd7 {[%emt 0:00:11]} Nb6 {[%emt 0:00:17]} 33. Rf7+ {[%emt 0:00:05]} Kg8 {[%emt 0:00:10]} 34. Rxg7+ {[%emt 0:00:02]} Kh8 {[%emt 0:00:05]} 35. Rxh7+ {[%emt 0:00:02]} Kg8 {[%emt 0:00:00]} 36. Rcg7+ {[%emt 0:00:26]} Kf8 {[%emt 0:00:01]} 37. Bxe4 {[%emt 0:00:16]} Re5 {[%emt 0:00:16]} 38. Bb1 {[%emt 0:00:22]} Rb5 {[%emt 0:00:20]} 39. Ba2 {[%emt 0:00:02]} Nd5 {[%emt 0:00:08]} 40. Rd7 {[%emt 0:00:14]} Kg8 {[%emt 0:00:15]} 41. e4 {[%emt 0:00:18]} 1-0

[Event "European Women Rapid-ch 2023"]
[Site "Monaco"]
[Date "2024.01.13"]
[Round "3.1"]
[White "Kosteniuk, Alexandra"]
[Black "Zhukova, Natalia"]
[Result "1-0"]
[ECO "C50"]
[WhiteElo "2501"]
[BlackElo "2301"]
[Annotator "RC"]
[PlyCount "61"]
[EventDate "2023.12.19"]
[EventType "swiss"]
[EventCountry "MNC"]
[SourceTitle "playchess.com"]
[Source "ChessBase"]
[SourceQuality "1"]
[TimeControl "900+10"]

1. e4 {[%emt 0:00:03]} e5 {[%emt 0:02:19]} 2. Nf3 {[%emt 0:00:03]} Nc6 {[%emt 0:00:03]} 3. Bc4 {[%emt 0:00:02]} Bc5 {[%emt 0:00:08]} 4. d3 {[%emt 0:00:02]} Nf6 {[%emt 0:00:19]} 5. Nc3 {[%emt 0:00:02]} O-O {[%emt 0:00:19]} 6. O-O {[%emt 0:00:02]} h6 {[%emt 0:00:52]} 7. h3 {[%emt 0:00:02]} a6 {[%emt 0:00:14]} 8. a4 {[%emt 0:00:10]} d6 {[%emt 0:00:22]} 9. Be3 {[%emt 0:00:02]} Nd4 {[%emt 0:01:41]} 10. Bxd4 {[%emt 0:02:29]} exd4 {[%emt 0:01:23]} 11. Ne2 {[%emt 0:00:19]} d5 {[%emt 0:00:04]} 12. Bb3 {[%emt 0:02:33]} dxe4 {[%emt 0:00:18]} 13. dxe4 {[%emt 0:00:01]} Nxe4 {[%emt 0:00:06]} 14. Nexd4 {[%emt 0:00:02]} Qf6 {[%emt 0:03:22]} 15. c3 {[%emt 0:00:05]} Ng5 {[%emt 0:00:29]} 16. Nxg5 {[%emt 0:00:33]} Qxg5 {[%emt 0:00:03]} 17. Qf3 {[%emt 0:00:02]} Bxd4 {[%emt 0:01:23]} 18. cxd4 {[%emt 0:00:02]} c6 {[%emt 0:00:20]} 19. Rae1 {[%emt 0:00:19]} Qf5 {[%emt 0:03:35]} 20. Qc3 {[%emt 0:00:38]} Qf6 {[%emt 0:00:45]} 21. Re5 {[%emt 0:00:09]} Bd7 {[%emt 0:00:11]} 22. a5 {[%emt 0:00:16]} Rad8 {[%emt 0:00:13]} 23. Rfe1 {[%emt 0:00:28]} Bc8 {[%emt 0:00:08]} 24. R1e3 {[%emt 0:00:16]} Qd6 {[%emt 0:00:11]} 25. d5 {[%emt 0:00:09]} cxd5 {[%emt 0:00:16]} 26. Rxd5 {[%emt 0:00:02]} Qg6 {[%emt 0:00:10]} 27. Rg3 {[%emt 0:00:17]} Qh7 {[%emt 0:00:15]} 28. Rxd8 {[%emt 0:00:22]} Rxd8 {[%emt 0:00:01]} 29. Qc7 {[%emt 0:00:20]} Rf8 {[%emt 0:00:16]} 30. Bxf7+ {[%emt 0:00:06]} Kh8 {[%emt 0:00:01]} 31. Qe7 {[%emt 0:00:16]} 1-0

[Event "European Women Rapid-ch 2023"]
[Site "Monaco"]
[Date "2024.01.13"]
[Round "3.2"]
[White "Khotenashvili, Bella"]
[Black "Hrebenshchykova, Yelyzaveta"]
[Result "0-1"]
[ECO "D02"]
[WhiteElo "2467"]
[BlackElo "2275"]
[Annotator "RC"]
[PlyCount "92"]
[EventDate "2023.12.19"]
[EventType "swiss"]
[EventCountry "MNC"]
[SourceTitle "playchess.com"]
[Source "ChessBase"]
[SourceQuality "1"]
[TimeControl "900+10"]

1. Nf3 {[%emt 0:00:01]} Nf6 {[%emt 0:00:02]} 2. g3 {[%emt 0:00:01]} g6 {[%emt 0:00:45]} 3. Bg2 {[%emt 0:00:04]} Bg7 {[%emt 0:00:01]} 4. d4 {[%emt 0:00:06]} d5 {[%emt 0:00:52]} 5. a4 {[%emt 0:00:13]} a5 {[%emt 0:00:22]} 6. c3 {[%emt 0:00:07]} O-O {[%emt 0:00:08]} 7. O-O {[%emt 0:00:07]} b6 {[%emt 0:01:01]} 8. Bf4 {[%emt 0:00:18]} Bb7 {[%emt 0:00:28]} 9. Na3 {[%emt 0:00:55]} Na6 {[%emt 0:01:04]} 10. Qc1 {[%emt 0:01:15]} Ne4 {[%emt 0:01:18]} 11. Bh6 {[%emt 0:00:47]} f6 {[%emt 0:00:05]} 12. Bxg7 {[%emt 0:00:35]} Kxg7 {[%emt 0:00:02]} 13. Nd2 {[%emt 0:00:29]} Nd6 {[%emt 0:02:09]} 14. Qc2 {[%emt 0:01:59]} c5 {[%emt 0:01:17]} 15. e3 {[%emt 0:01:07]} e5 {[%emt 0:01:31]} 16. dxe5 {[%emt 0:01:10]} fxe5 {[%emt 0:00:01]} 17. Rad1 {[%emt 0:00:02]} Bc6 {[%emt 0:03:23]} 18. Ndc4 {[%emt 0:02:07]} Nxc4 {[%emt 0:01:00]} 19. Nxc4 {[%emt 0:00:01]} Re8 {[%emt 0:00:00]} 20. f4 {[%emt 0:01:38]} e4 {[%emt 0:01:18]} 21. Ne5 {[%emt 0:00:30]} Qc7 {[%emt 0:00:33]} 22. c4 {[%emt 0:03:02]} d4 {[%emt 0:00:31]} 23. exd4 {[%emt 0:00:13]} cxd4 {[%emt 0:00:01]} 24. Rxd4 {[%emt 0:00:13]} Nc5 {[%emt 0:00:01]} 25. b3 {[%emt 0:00:13]} Rxe5 {[%emt 0:00:31]} 26. fxe5 {[%emt 0:00:03]} Qxe5 {[%emt 0:00:01]} 27. Rdd1 {[%emt 0:01:51]} Nd3 {[%emt 0:00:43]} 28. Qe2 {[%emt 0:00:06]} Rd8 {[%emt 0:00:06]} 29. Qe3 {[%emt 0:00:09]} Qd4 {[%emt 0:00:25]} 30. Rfe1 {[%emt 0:00:08]} Rd7 {[%emt 0:00:17]} 31. Rxd3 {[%emt 0:00:09]} Qxd3 {[%emt 0:00:03]} 32. Qxb6 {[%emt 0:00:07]} Qd2 {[%emt 0:00:10]} 33. Qe3 {[%emt 0:00:15]} Qxe3+ {[%emt 0:00:11]} 34. Rxe3 {[%emt 0:00:02]} Rd4 {[%emt 0:00:01]} 35. Kf2 {[%emt 0:00:31]} Kf6 {[%emt 0:00:02]} 36. Bf1 {[%emt 0:00:04]} Ke5 {[%emt 0:00:07]} 37. Rc3 {[%emt 0:00:05]} Rd2+ {[%emt 0:00:08]} 38. Be2 {[%emt 0:00:23]} Kd4 {[%emt 0:00:16]} 39. Rc1 {[%emt 0:00:13]} e3+ {[%emt 0:00:15]} 40. Ke1 {[%emt 0:00:05]} Rb2 {[%emt 0:00:29]} 41. Rd1+ {[%emt 0:00:11]} Ke4 {[%emt 0:00:01]} 42. Rd6 {[%emt 0:00:05]} Rb1+ {[%emt 0:00:14]} 43. Bd1 {[%emt 0:00:06]} Bb7 {[%emt 0:00:01]} 44. Rd7 {[%emt 0:00:20]} Bc8 {[%emt 0:00:12]} 45. Re7+ {[%emt 0:00:16]} Kd3 {[%emt 0:00:15]} 46. Rf7 {[%emt 0:00:16]} Bg4 {[%emt 0:00:11]} 0-1

[Event "European Women Rapid-ch 2023"]
[Site "Monaco"]
[Date "2024.01.13"]
[Round "3.3"]
[White "Schulze, Lara"]
[Black "Stefanova, Antoaneta"]
[Result "1/2-1/2"]
[ECO "C30"]
[WhiteElo "2285"]
[BlackElo "2431"]
[Annotator "RC"]
[PlyCount "101"]
[EventDate "2023.12.19"]
[EventType "swiss"]
[EventCountry "MNC"]
[SourceTitle "playchess.com"]
[Source "ChessBase"]
[SourceQuality "1"]
[TimeControl "900+10"]

1. e4 {[%emt 0:00:02]} e5 {[%emt 0:00:01]} 2. Nc3 {[%emt 0:00:02]} Nc6 {[%emt 0:00:09]} 3. Bc4 {[%emt 0:00:03]} Nf6 {[%emt 0:00:32]} 4. d3 {[%emt 0:00:05]} Na5 {[%emt 0:00:11]} 5. Bb3 {[%emt 0:00:05]} Nxb3 {[%emt 0:00:47]} 6. axb3 {[%emt 0:00:03]} Bc5 {[%emt 0:02:20]} 7. f4 {[%emt 0:02:09]} d6 {[%emt 0:01:11]} 8. Nf3 {[%emt 0:00:03]} Ng4 {[%emt 0:00:33]} 9. Qe2 {[%emt 0:01:12]} exf4 {[%emt 0:01:00]} 10. d4 {[%emt 0:00:42]} Bb6 {[%emt 0:00:02]} 11. Bxf4 {[%emt 0:00:22]} c6 {[%emt 0:00:57]} 12. h3 {[%emt 0:02:16]} Nf6 {[%emt 0:00:02]} 13. O-O {[%emt 0:01:23]} Nh5 {[%emt 0:01:28]} 14. Bh2 {[%emt 0:00:53]} O-O {[%emt 0:00:15]} 15. Kh1 {[%emt 0:01:48]} d5 {[%emt 0:02:29]} 16. e5 {[%emt 0:02:39]} f5 {[%emt 0:01:05]} 17. exf6 {[%emt 0:02:14]} Rxf6 {[%emt 0:00:42]} 18. Ne5 {[%emt 0:00:13]} Qe8 {[%emt 0:00:24]} 19. g4 {[%emt 0:00:39]} Rxf1+ {[%emt 0:00:07]} 20. Rxf1 {[%emt 0:00:05]} Nf6 {[%emt 0:00:01]} 21. Qd3 {[%emt 0:00:19]} Be6 {[%emt 0:00:22]} 22. Ne2 {[%emt 0:00:24]} Qe7 {[%emt 0:01:02]} 23. Ng3 {[%emt 0:00:11]} Rf8 {[%emt 0:00:36]} 24. Kg2 {[%emt 0:00:02]} c5 {[%emt 0:00:37]} 25. dxc5 {[%emt 0:00:18]} Qxc5 {[%emt 0:00:04]} 26. Nf5 {[%emt 0:00:21]} Ne4 {[%emt 0:01:00]} 27. c3 {[%emt 0:00:19]} Bxf5 {[%emt 0:00:25]} 28. gxf5 {[%emt 0:00:02]} Nf6 {[%emt 0:00:06]} 29. b4 {[%emt 0:00:24]} Qc8 {[%emt 0:00:19]} 30. Bg3 Bc7 {[%emt 0:00:35]} 31. Ng4 {[%emt 0:00:11]} Rd8 {[%emt 0:00:10]} 32. Nxf6+ {[%emt 0:00:18]} gxf6 {[%emt 0:00:43]} 33. Bxc7 {[%emt 0:00:00]} Qxc7 {[%emt 0:00:00]} 34. Qg3+ {[%emt 0:00:05]} Qxg3+ {[%emt 0:00:00]} 35. Kxg3 {[%emt 0:00:00]} Re8 36. Rd1 {[%emt 0:00:00]} Re5 37. Kf4 {[%emt 0:00:09]} Kf7 {[%emt 0:00:00]} 38. Rd3 {[%emt 0:00:17]} a6 {[%emt 0:00:00]} 39. b3 {[%emt 0:00:08]} Ke7 {[%emt 0:00:06]} 40. Rg3 {[%emt 0:00:31]} Re4+ {[%emt 0:00:09]} 41. Kf3 {[%emt 0:00:01]} Kf7 {[%emt 0:00:05]} 42. Rg1 {[%emt 0:00:19]} Re5 {[%emt 0:00:13]} 43. Kf4 {[%emt 0:00:01]} Re2 {[%emt 0:00:02]} 44. Rd1 {[%emt 0:00:10]} Re4+ {[%emt 0:00:22]} 45. Kf3 {[%emt 0:00:01]} Re5 {[%emt 0:00:01]} 46. Kf4 {[%emt 0:00:03]} Ke7 {[%emt 0:00:09]} 47. Rg1 {[%emt 0:00:07]} Re4+ {[%emt 0:01:14]} 48. Kf3 {[%emt 0:00:02]} Kf7 {[%emt 0:00:01]} 49. Rd1 {[%emt 0:00:38]} Re5 {[%emt 0:00:02]} 50. Kf4 {[%emt 0:00:03]} Ke7 {[%emt 0:00:09]} 51. Rg1 {[%emt 0:00:02]} 1/2-1/2

[Event "European Women Rapid-ch 2023"]
[Site "Monaco"]
[Date "2024.01.13"]
[Round "3.4"]
[White "Kulon, Klaudia"]
[Black "Khademalsharieh, Sarasadat"]
[Result "0-1"]
[ECO "A13"]
[WhiteElo "2323"]
[BlackElo "2486"]
[Annotator "RC"]
[PlyCount "78"]
[EventDate "2023.12.19"]
[EventType "swiss"]
[EventCountry "MNC"]
[SourceTitle "playchess.com"]
[Source "ChessBase"]
[SourceQuality "1"]
[TimeControl "900+10"]

1. c4 {[%emt 0:00:01]} e6 {[%emt 0:00:02]} 2. g3 {[%emt 0:00:02]} d5 {[%emt 0:00:05]} 3. Bg2 {[%emt 0:00:02]} Nf6 {[%emt 0:00:05]} 4. Nf3 {[%emt 0:00:02]} d4 {[%emt 0:00:05]} 5. b4 {[%emt 0:00:40]} c5 {[%emt 0:00:54]} 6. bxc5 {[%emt 0:00:40]} Bxc5 {[%emt 0:00:17]} 7. O-O {[%emt 0:00:03]} Nc6 {[%emt 0:00:03]} 8. e3 {[%emt 0:00:08]} O-O {[%emt 0:00:31]} 9. Ba3 {[%emt 0:00:44]} Bxa3 {[%emt 0:00:12]} 10. Nxa3 {[%emt 0:00:02]} e5 {[%emt 0:00:15]} 11. exd4 {[%emt 0:00:30]} e4 {[%emt 0:00:50]} 12. Ne1 {[%emt 0:02:57]} Nxd4 {[%emt 0:01:14]} 13. h3 {[%emt 0:00:36]} Qa5 {[%emt 0:00:27]} 14. Nb1 {[%emt 0:01:25]} Be6 {[%emt 0:00:27]} 15. d3 {[%emt 0:00:33]} Rfd8 {[%emt 0:01:00]} 16. Nd2 {[%emt 0:00:45]} exd3 {[%emt 0:00:21]} 17. Nxd3 {[%emt 0:00:38]} Bf5 {[%emt 0:01:34]} 18. Nf4 {[%emt 0:01:28]} Nc2 {[%emt 0:00:13]} 19. Nd5 {[%emt 0:00:08]} Nxd5 {[%emt 0:00:03]} 20. Nb3 {[%emt 0:00:25]} Qc7 {[%emt 0:01:05]} 21. cxd5 {[%emt 0:00:04]} Nxa1 {[%emt 0:00:03]} 22. Qxa1 {[%emt 0:00:01]} Rac8 {[%emt 0:00:25]} 23. Qd4 {[%emt 0:00:08]} b6 {[%emt 0:00:10]} 24. Rc1 {[%emt 0:00:33]} Qd6 {[%emt 0:00:05]} 25. Rxc8 {[%emt 0:00:11]} Rxc8 {[%emt 0:00:02]} 26. Qa4 {[%emt 0:00:01]} a5 {[%emt 0:00:08]} 27. Nd4 {[%emt 0:00:10]} Bd7 {[%emt 0:00:02]} 28. Nc6 {[%emt 0:00:07]} Re8 {[%emt 0:00:35]} 29. h4 {[%emt 0:01:05]} Qf6 {[%emt 0:00:42]} 30. Qd1 {[%emt 0:01:35]} Qc3 {[%emt 0:00:15]} 31. Kh2 {[%emt 0:00:13]} Qb2 {[%emt 0:00:34]} 32. Qd4 {[%emt 0:01:02]} Qxd4 {[%emt 0:00:13]} 33. Nxd4 {[%emt 0:00:01]} b5 {[%emt 0:00:08]} 34. d6 {[%emt 0:00:17]} Rd8 {[%emt 0:00:20]} 35. Nb3 {[%emt 0:00:47]} Be6 {[%emt 0:00:37]} 36. Nd4 {[%emt 0:00:30]} b4 {[%emt 0:00:36]} 37. Nb5 {[%emt 0:00:43]} Bc4 {[%emt 0:00:11]} 38. a4 {[%emt 0:00:18]} Bxb5 {[%emt 0:00:03]} 39. axb5 {[%emt 0:00:01]} Rxd6 {[%emt 0:00:01]} 0-1

[Event "European Women Rapid-ch 2023"]
[Site "Monaco"]
[Date "2024.01.13"]
[Round "3.5"]
[White "Papp, Petra"]
[Black "Javakhishvili, Lela"]
[Result "1/2-1/2"]
[ECO "B30"]
[WhiteElo "2267"]
[BlackElo "2433"]
[Annotator "TA"]
[PlyCount "48"]
[EventDate "2023.12.19"]
[EventType "swiss"]
[EventCountry "MNC"]
[SourceTitle "playchess.com"]
[Source "ChessBase"]
[SourceQuality "1"]
[TimeControl "900+10"]

{[%evp 10,48,22,14,40,43,37,31,41,32,44,13,17,20,16,16,23,25,36,23,18,14,31,14,20,16,43,28,22,24,35,35,33,35,35,0,10,0,25,0,21]} 1. e4 {[%emt 0:00:03]} c5 {[%emt 0:00:02]} 2. Nf3 {[%emt 0:00:14][%cal Bg1f3,Bf3d2,Bd2f1,Bf1e3,Be3d5][%mdl 32]} Nc6 {[%emt 0:00:01]} 3. Nc3 {[%emt 0:00:12]} e5 {[%emt 0:00:26]} 4. Bc4 {[%emt 0:00:04]} d6 {[%emt 0:00:04]} 5. d3 {[%emt 0:00:07]} Be7 {[%emt 0:00:02]} 6. Nd2 {[%emt 0:00:25]} Nd4 {[%emt 0:00:36]} 7. Nf1 {[%emt 0:00:49]} Be6 {[%emt 0:00:07]} 8. Ne3 {[%emt 0:00:22]} Nf6 {[%emt 0:00:53] White is slightly better.} 9. O-O {[%emt 0:00:15]} O-O {[%emt 0:00:40]} 10. Ncd5 {[%emt 0:00:32]} b5 {[%emt 0:01:10]} 11. Nxf6+ {[%emt 0:00:34]} Bxf6 {[%emt 0:00:10]} 12. Bd5 {[%emt 0:00:15]} Bxd5 $1 {[%emt 0:00:32]} 13. Nxd5 {[%emt 0:00:05]} Bg5 {[%emt 0:00:32]} 14. c3 {[%emt 0:00:41]} Bxc1 {[%emt 0:00:50]} 15. Rxc1 {[%emt 0:00:14]} Ne6 {[%emt 0:00:05]} 16. a4 {[%emt 0:00:15]} a6 {[%emt 0:00:07]} 17. Ra1 {[%emt 0:00:21]} b4 {[%emt 0:03:48]} 18. cxb4 {[%emt 0:04:09]} cxb4 {[%emt 0:00:02]} 19. Nxb4 {[%emt 0:00:02]} Qb6 {[%emt 0:00:01]} 20. Nd5 {[%emt 0:02:07]} Qxb2 {[%emt 0:00:04]} 21. Rb1 {[%emt 0:00:30]} Qa3 {[%emt 0:00:10]} 22. Ra1 {[%emt 0:01:47]} Qb2 {[%emt 0:00:32]} 23. Rb1 {[%emt 0:00:03]} Qa3 {[%emt 0:00:19]} 24. Ra1 {[%emt 0:00:01]} Qb2 {[%emt 0:00:02] Weighted Error Value: White=0.10 (very precise) /Black=0.06 (flawless) .  Inaccurate:     	White=1     	Black=1      OK:         	White=5     	Black=6      Strong:       	---       	Black=1} 1/2-1/2